bitfinex-derivatives/quotes_ETHF0:USTF0_20260102
["timestamp","ask_amount","ask_price","bid_price","bid_amount"]
[1767355527891,0.16428,3047.0,3046.1,0.48512687]
[1767355528092,0.65139856,3047.6,3046.2,1.23407769]
[1767355528300,0.16917538,3047.6,3046.3,0.48020149]
[1767355528494,0.16917538,3047.6,3046.5,0.48020149]
[1767355529391,0.16917538,3047.6,3046.6,0.7538762]
[1767355529586,0.16917538,3047.6,3046.6,1.23407769]
[1767355529786,0.16917538,3047.6,3046.7,0.48020149]
[1767355535605,0.00492538,3047.6,3046.7,0.48020149]
[1767355535803,0.00492538,3047.6,3046.8,1.23407769]
[1767355536000,0.00408889,3047.9,3046.8,1.23407769]
[1767355536299,0.00408889,3047.9,3046.9,0.48020149]
[1767355536601,0.00408889,3047.9,3047.2,0.7538762]
[1767355536902,0.00901427,3047.9,3047.2,0.00312057]
[1767355543903,0.17324427,3047.9,3047.2,0.00312057]
[1767355547910,0.17324427,3047.9,3046.7,0.48020149]
[1767355548309,0.17324427,3047.9,3046.1,3.56592538]
[1767355548310,0.16424,3047.8,3046.2,0.48020149]
[1767355549013,0.16424,3047.8,3046.2,0.48381899]
[1767355551514,0.16424,3047.8,3046.3,0.48020149]
[1767355552311,0.16424,3047.7,3046.3,0.48020149]
[1767355554319,0.16424,3047.7,3046.4,0.48020149]
[1767355560820,0.16425,3047.6,3046.4,0.48020149]
[1767355568731,0.00901427,3047.9,3046.6,0.51694974]
[1767355569525,0.00901427,3047.9,3046.7,0.68123974]
[1767355569831,0.1642,3048.6,3046.8,0.51694974]
[1767355570024,1.16061311,3048.5,3046.8,0.51694974]
[1767355570224,0.99641311,3048.4,3046.8,0.51694974]
[1767355570526,0.99641311,3048.3,3046.8,0.51694974]
[1767355570726,0.00492538,3047.9,3046.8,0.51694974]
[1767355574034,0.00492538,3047.9,3047.0,0.51694974]
[1767355575038,0.0030745,3048.4,3047.0,0.51694974]
[1767355576145,0.00492538,3048.0,3047.0,0.51694974]
[1767355577146,0.0030745,3048.4,3047.0,0.51694974]
[1767355578244,0.00326437,3048.0,3047.0,0.51694974]
[1767355579440,0.00326437,3048.0,3047.1,4.644]
[1767355579845,0.00326437,3048.0,3047.0,0.51694974]
[1767355581548,0.00326437,3048.0,3046.5,0.51694974]
[1767355582038,0.00326437,3048.0,3046.6,4.307]
[1767355582039,0.16749437,3048.0,3046.6,4.307]
[1767355582245,0.16749437,3048.0,3046.5,5.16494974]
[1767355586441,0.16423,3047.9,3046.5,5.16594974]
[1767355587445,0.16423,3047.9,3046.5,0.51694974]
[1767355587647,0.16423,3047.9,3046.5,5.16594974]
[1767355589653,0.16423,3047.9,3046.5,0.51694974]
[1767355593260,0.16424,3047.8,3046.5,0.51694974]
[1767355602554,0.75320813,3047.6,3046.5,0.51694974]
[1767355607659,0.75320813,3047.4,3046.5,0.51694974]
[1767355612565,0.75320813,3047.2,3046.5,0.51694974]
[1767355612862,0.75320813,3047.2,3046.2,0.0036175]
[1767355613064,0.75320813,3047.0,3046.2,0.0036175]
[1767355613367,0.16427,3047.2,3046.2,0.54856368]
[1767355614572,0.75320813,3047.7,3046.4,0.54494618]
[1767355614760,0.99898083,3047.6,3046.4,0.54494618]
[1767355614960,1.75218896,3047.5,3046.4,0.54494618]
[1767355615158,0.99898083,3047.4,3046.4,0.54494618]
[1767355615357,0.75320813,3046.9,3046.2,0.0036175]
[1767355619672,0.75320813,3047.1,3046.2,0.0036175]
[1767355620873,0.91746813,3047.3,3046.2,0.0036175]
[1767355622176,0.75320813,3047.1,3046.2,0.0036175]
[1767355623772,0.75320813,3047.2,3046.2,0.0036175]
[1767355624878,0.16426,3047.3,3046.2,0.0036175]
[1767355638077,0.91746813,3047.3,3046.2,0.0036175]
[1767355640379,0.99897611,3047.2,3046.2,0.0036175]
[1767355640587,0.52807502,3047.2,3046.2,0.0036175]
[1767355643886,0.91746813,3047.3,3046.2,0.0036175]
[1767355644091,0.99963351,3047.2,3046.2,0.0036175]
[1767355644390,0.91746813,3047.3,3046.2,0.0036175]
[1767355644582,0.99963986,3047.2,3046.2,0.0036175]
[1767355644882,0.91746813,3047.3,3046.2,0.0036175]
[1767355645082,0.99963848,3047.2,3046.2,0.0036175]
[1767355645387,0.91746813,3047.3,3046.2,0.0036175]
[1767355645591,0.9996757,3047.2,3046.2,0.0036175]
[1767355645785,0.91746813,3047.3,3046.2,0.0036175]
[1767355645985,0.9996819,3047.2,3046.2,0.0036175]
[1767355646182,0.91746813,3047.3,3046.2,0.0036175]
[1767355646384,0.99968494,3047.2,3046.2,0.0036175]
[1767355646586,0.91746813,3047.3,3046.2,0.0036175]
[1767355646898,0.7564725,3048.0,3046.2,0.0036175]
[1767355646899,0.75320813,3046.8,3046.2,0.0036175]
[1767355647191,0.75320813,3046.8,3045.5,5.89527792]
[1767355647995,0.00492538,3046.5,3045.8,0.00492538]
[1767355649494,0.16428,3047.0,3046.1,0.50606979]
[1767355650584,0.00326437,3046.9,3046.1,0.50606979]
[1767355660099,0.00326437,3046.9,3045.8,0.00492538]
[1767355662101,0.00326437,3046.9,3045.8,0.51099517]
[1767355667207,0.00326437,3046.9,3045.9,4.636]
[1767355667396,0.00326437,3046.9,3046.0,0.50606979]
[1767355670308,0.00326437,3046.9,3046.0,5.14406979]
[1767355670508,0.00326437,3046.9,3045.8,0.00492538]
[1767355672010,0.00326437,3046.9,3045.8,0.51099517]
[1767355677311,0.75668965,3046.9,3045.8,0.00492538]
[1767355677513,1.00025311,3046.8,3045.8,0.00492538]
[1767355677710,0.75668965,3046.9,3045.8,0.00492538]
[1767355677912,1.00025134,3046.8,3045.8,0.00492538]
[1767355678111,0.75668965,3046.9,3045.8,0.00492538]
[1767355678315,1.00025196,3046.8,3045.8,0.00492538]
[1767355678518,0.75668965,3046.9,3045.8,0.00492538]
[1767355680120,0.92097965,3046.9,3045.8,0.00492538]
[1767355681723,0.1643,3046.6,3045.8,0.00492538]
[1767355682722,0.00326437,3046.9,3045.8,0.00492538]
[1767355683025,0.00326437,3046.9,3045.8,0.49672063]
[1767355699935,0.99866135,3046.8,3045.8,0.49672063]
[1767355700135,0.99856756,3046.7,3045.8,0.00492538]
[1767355700332,0.16431,3046.4,3045.5,0.00353896]
[1767355700636,1.16288756,3046.3,3045.5,0.00353896]
[1767355700939,0.99856756,3046.2,3045.5,0.00353896]
[1767355701142,0.00418932,3046.2,3045.5,0.00353896]
[1767355701337,0.00418932,3046.2,3045.5,0.00846434]
[1767355704137,0.16850932,3046.2,3045.5,0.00846434]
[1767355704741,0.16850932,3046.2,3045.5,0.00173415]
[1767355705541,0.16850932,3046.2,3045.5,0.00565834]
[1767355714347,0.16433,3046.1,3045.5,0.00565834]
[1767355717440,0.16433,3046.1,3045.0,0.49179525]
[1767355718548,0.16433,3046.0,3045.2,0.00492538]
[1767355719639,0.16434,3045.9,3045.2,0.00492538]
[1767355721646,0.16434,3045.9,3045.0,0.00319602]
[1767355722749,0.16434,3045.9,3045.1,0.00492538]
[1767355722940,0.16437,3045.4,3044.1,0.50608061]
[1767355723142,0.91779528,3045.4,3044.1,0.50608061]
[1767355723948,0.00492538,3045.1,3044.4,0.00492538]
[1767355724542,0.75940883,3045.1,3044.4,0.00492538]
[1767355724745,0.00492538,3045.1,3044.4,0.00492538]
[1767355724949,0.75448345,3045.0,3044.4,0.00492538]
[1767355725150,0.00492538,3045.1,3044.4,0.00492538]
[1767355725348,0.75448345,3045.0,3044.4,0.00492538]
[1767355726453,0.00492538,3045.1,3044.4,0.00492538]
[1767355726645,0.75448345,3045.0,3044.4,0.00492538]
[1767355728051,0.75448345,3044.8,3044.4,0.00492538]
[1767355728254,0.75448345,3044.8,3044.1,0.50893933]
[1767355728443,0.75448345,3044.6,3044.1,0.00285872]
[1767355728648,0.75448345,3044.4,3043.7,0.50608061]
[1767355728848,0.75448345,3044.6,3043.7,0.50608061]
[1767355729252,0.75448345,3044.6,3043.8,0.00492538]
[1767355729650,0.75448345,3044.6,3043.8,0.00826698]
[1767355731654,0.75448345,3044.7,3043.8,0.00826698]
[1767355734064,0.1644,3044.8,3043.8,0.00826698]
[1767355734260,0.1644,3044.8,3043.8,0.51434759]
[1767355734461,0.00492538,3045.1,3044.2,0.50608061]
[1767355743169,0.00492538,3045.1,3044.4,0.47890678]
[1767355743559,0.16434,3045.9,3044.7,0.47890678]
[1767355743968,0.75448345,3045.8,3044.7,0.47890678]
[1767355744570,0.00492538,3045.6,3044.7,0.47890678]
[1767355749771,0.00492538,3045.6,3044.9,0.47890678]
[1767355749982,0.16434,3045.9,3044.9,0.47890678]
[1767355750988,0.00492538,3045.7,3044.9,0.47890678]
[1767355751483,0.00492538,3045.7,3045.1,0.47890678]
[1767355751679,0.16434,3045.9,3045.1,0.47890678]
[1767355752577,0.00492538,3045.8,3045.1,0.47890678]
[1767355753872,0.00492538,3045.8,3044.2,0.16443]
[1767355753873,0.75940883,3045.8,3044.6,0.47890678]
[1767355754078,0.75448345,3045.6,3044.6,0.47890678]
[1767355754482,0.00492538,3045.8,3044.6,0.47890678]
[1767355754787,0.00492538,3045.8,3044.8,0.47890678]
[1767355762689,0.00492538,3045.8,3045.0,0.47890678]
[1767355765490,0.00492538,3045.8,3045.1,0.47890678]
[1767355765793,0.00418932,3046.2,3045.1,0.47890678]
[1767355766700,0.00492538,3046.0,3045.3,0.4736418]
[1767355769802,0.75448345,3045.7,3044.9,0.46871642]
[1767355770899,0.75448345,3045.7,3045.0,0.00492538]
[1767355771802,0.75448345,3045.5,3045.0,0.00492538]
[1767355775006,0.91884345,3045.5,3045.0,0.00492538]
[1767355775202,0.91885345,3045.3,3044.5,0.46871642]
[1767355775395,0.75448345,3045.1,3043.9,0.46871642]
[1767355775699,0.16438,3045.2,3043.9,0.46871642]
[1767355776301,0.16438,3045.2,3044.3,0.46871642]
[1767355783607,0.16438,3045.2,3044.2,0.00492538]
[1767355783608,0.16435,3045.7,3044.5,0.46871642]
[1767355783807,0.99315468,3045.6,3044.5,0.46871642]
[1767355784010,0.16435,3045.7,3044.6,0.46871642]
[1767355784315,0.91883345,3045.7,3044.6,0.46871642]
[1767355784514,0.16435,3045.7,3044.6,0.46871642]
[1767355786110,0.16436,3045.5,3044.6,0.46871642]
[1767355801421,0.00492538,3046.0,3044.6,0.46871642]
[1767355801622,0.99381741,3045.9,3044.6,0.46871642]
[1767355801821,0.00492538,3046.0,3044.6,0.46871642]
[1767355802026,0.99441481,3045.9,3044.6,0.46871642]
[1767355802325,0.00492538,3046.0,3044.6,0.46871642]
[1767355802526,0.99428288,3045.9,3044.6,0.46871642]
[1767355802727,0.00492538,3046.0,3044.6,0.46871642]
[1767355802928,0.99430366,3045.9,3044.6,0.46871642]
[1767355803232,0.00492538,3046.0,3044.6,0.46871642]
[1767355803430,0.99426012,3045.9,3044.6,0.46871642]
[1767355803733,0.00492538,3046.0,3044.6,0.46871642]
[1767355803931,0.9942572,3045.9,3044.6,0.46871642]
[1767355804123,0.00492538,3046.0,3044.6,0.46871642]
[1767355804519,0.00492538,3046.0,3044.6,1.38729993]
[1767355804723,0.1643,3046.6,3045.1,0.47497203]
[1767355805928,0.00492538,3046.0,3045.1,0.47497203]
[1767355808025,0.1643,3046.6,3045.1,0.47497203]
[1767355809234,0.16720693,3046.6,3045.1,0.47497203]
[1767355809623,0.00290693,3046.6,3045.3,0.47497203]
[1767355809827,0.00290693,3046.6,3045.5,0.47497203]
[1767355810334,0.00326437,3046.4,3045.8,0.47497203]
[1767355810537,0.16428,3047.0,3045.8,0.47497203]
[1767355811535,0.16720784,3047.0,3045.8,0.47497203]
[1767355814339,0.16720784,3047.0,3045.9,0.47497203]
[1767355814829,0.00292784,3047.0,3045.9,0.47497203]
[1767355816836,0.16425,3047.5,3046.3,0.47497203]
[1767355817734,0.16770171,3047.5,3046.3,5.08749206]
[1767355818130,0.16770171,3047.5,3046.4,0.47497203]
[1767355819831,0.00345171,3047.5,3046.4,0.47497203]
[1767355822834,0.16423,3047.9,3046.7,0.47497203]
[1767355823939,0.1681473,3047.9,3046.7,0.47497203]
[1767355829750,0.1681473,3047.9,3046.6,0.22914554]
[1767355830353,0.1681473,3047.9,3046.7,4.608]
[1767355831742,0.1681473,3047.9,3046.8,0.45806352]
[1767355833654,0.0039173,3047.9,3046.8,0.45806352]
[1767355834349,0.16421,3048.4,3047.1,0.45806352]
[1767355834544,0.16421,3048.4,3047.4,0.00492538]
[1767355835652,0.16676683,3048.4,3047.4,0.00492538]
[1767355836568,0.16421,3048.3,3047.4,0.00492538]
[1767355841960,0.00255683,3048.4,3047.4,0.4629889]
[1767355843760,0.00255683,3048.4,3047.5,0.45806352]
[1767355843966,0.16418,3048.8,3047.5,0.45806352]
[1767355844167,0.99407628,3048.7,3047.5,0.45806352]
[1767355844374,0.16418,3048.8,3047.5,0.45806352]
[1767355844568,0.16418,3048.8,3047.8,0.75242079]
[1767355844966,0.16753332,3048.8,3047.8,0.75242079]
[1767355845470,0.16753332,3048.8,3047.8,1.21048431]
[1767355846770,0.16753332,3048.8,3047.8,0.45806352]
[1767355846973,0.16753332,3048.8,3047.6,0.75242079]
[1767355847969,0.99437334,3048.7,3047.6,4.605]
[1767355848173,1.74679375,3048.6,3047.5,4.605]
[1767355848374,0.75242079,3048.6,3047.5,4.605]
[1767355849071,0.75242079,3048.4,3047.4,0.00492538]
[1767355849270,0.9943376,3048.3,3047.4,0.00492538]
[1767355853973,0.9943376,3048.3,3047.4,0.75734617]
[1767355854173,0.16421,3048.4,3047.4,0.75734617]
[1767355856373,0.16421,3048.4,3047.4,0.00492538]
[1767355856678,0.99533058,3048.3,3047.4,0.00492538]
[1767355856873,1.36206949,3048.4,3047.4,0.00492538]
[1767355859482,0.6096487,3048.4,3047.4,0.00492538]
[1767355859783,0.16421,3048.4,3047.4,0.00492538]
[1767355860281,0.16421,3048.4,3047.4,0.75734617]
[1767355860886,0.16421,3048.4,3047.4,0.00492538]
[1767355865183,0.6096487,3048.4,3047.4,0.00492538]
[1767355866085,0.16421,3048.4,3047.4,0.00492538]
[1767355866887,0.6096487,3048.4,3047.4,0.00492538]
[1767355867687,0.75242079,3048.3,3047.4,0.00492538]
[1767355869695,0.75242079,3048.1,3047.4,0.00492538]
[1767355869879,0.91664079,3048.1,3047.0,4.601]
[1767355870084,0.16422,3048.1,3047.0,4.601]
[1767355870485,0.16422,3048.1,3047.0,5.35342079]
[1767355870796,0.00492538,3047.9,3047.2,0.00492538]
[1767355871185,0.00492538,3047.9,3047.2,0.75734617]
[1767355871489,0.00492538,3047.9,3047.4,0.75242079]
[1767355871796,0.6096287,3048.7,3047.4,0.75242079]
[1767355871990,0.99718644,3048.6,3047.4,0.75242079]
[1767355872192,0.6096287,3048.7,3047.4,0.75242079]
[1767355872391,0.99694973,3048.6,3047.4,0.75242079]
[1767355872591,0.6096287,3048.7,3047.4,0.75242079]
[1767355872792,1.6065156,3048.6,3047.4,0.75242079]
[1767355872996,0.6096287,3048.6,3047.4,0.75242079]
[1767355873596,0.6096287,3048.6,3047.2,0.75734617]
[1767355874195,0.99683889,3048.5,3047.2,0.75734617]
[1767355874389,0.99683889,3048.5,3047.2,0.00492538]
[1767355874390,0.4454387,3048.5,3047.2,0.00492538]
[1767355874694,0.4454387,3048.4,3047.2,0.75734617]
[1767355874993,0.4454387,3048.4,3047.2,0.00492538]
[1767355874994,1.19785949,3048.3,3047.2,0.00492538]
[1767355876398,0.4454387,3048.3,3047.2,0.00492538]
[1767355879698,0.6096487,3048.3,3047.2,0.00492538]
[1767355880094,0.4454387,3048.2,3047.2,0.00492538]
[1767355880296,0.4454387,3047.8,3046.3,6.94599493]
[1767355880494,0.16423,3048.0,3046.6,0.75242079]
[1767355880699,0.16423,3048.0,3046.8,0.75242079]
[1767355881499,0.00492538,3047.7,3047.1,0.00492538]
[1767355883997,1.20278487,3047.7,3046.4,5.35542079]
[1767355884190,0.75242079,3047.3,3046.3,0.00252003]
[1767355884392,1.19785949,3047.5,3046.3,0.00252003]
[1767355884597,0.4454387,3047.5,3046.3,0.00252003]
[1767355885097,0.4454387,3047.5,3046.6,0.00492538]
[1767355885699,1.19785949,3047.5,3046.6,0.00492538]
[1767355890609,0.16916538,3047.7,3046.6,0.00492538]
[1767355891700,0.92158617,3047.7,3046.6,0.00492538]
[1767355892510,1.38353621,3047.7,3046.6,0.00492538]
[1767355893006,0.46195004,3047.6,3046.6,0.00492538]
[1767355893905,0.75242079,3047.4,3046.6,0.00492538]
[1767355894304,1.21437083,3047.4,3046.6,0.00492538]
[1767355895314,1.21437083,3047.4,3046.3,0.00252003]
[1767355895315,0.75242079,3047.2,3046.3,0.00252003]
[1767355896404,0.75242079,3047.2,3046.4,0.00492538]
[1767355897313,0.62621004,3047.4,3046.4,0.00492538]
[1767355899313,0.16426,3047.4,3046.4,0.00492538]
[1767355899612,0.00492538,3047.7,3046.8,0.75242079]
[1767355899813,0.16423,3048.0,3047.1,0.75242079]
[1767355900314,0.46195004,3048.3,3047.1,0.75242079]
[1767355900511,0.75242079,3048.2,3046.9,4.606]
[1767355901018,0.00492538,3047.9,3046.9,4.606]
[1767355903324,0.00492538,3047.9,3047.0,0.75242079]
[1767355904224,0.00492538,3047.9,3046.9,4.606]
[1767355904418,0.00492538,3047.9,3047.0,0.75242079]
[1767355905422,0.00492538,3047.9,3047.2,0.75242079]
[1767355906523,0.00492538,3047.9,3047.0,0.44838425]
[1767355914838,0.00492538,3047.9,3047.1,4.617]
[1767355915937,0.00492538,3047.9,3047.1,4.618]
[1767355916835,0.00492538,3047.9,3046.7,0.16429]
[1767355917041,0.00492538,3047.9,3047.0,4.622]
[1767355946160,0.00492538,3047.9,3047.0,5.02829657]
[1767355948069,0.00492538,3047.9,3047.1,0.40629657]
[1767355952375,0.00492538,3047.9,3047.1,5.04629657]
[1767355956288,0.00492538,3047.9,3047.1,0.40629657]
[1767355956480,0.00492538,3047.9,3047.1,5.04829657]
[1767355959384,0.00492538,3047.9,3047.2,0.40629657]
[1767355971788,0.16754332,3048.8,3047.8,0.75278253]
[1767355971993,0.99837255,3048.7,3047.9,0.75278253]
[1767355972188,0.16754332,3048.8,3047.9,0.75278253]
[1767355972892,0.00492538,3048.7,3048.0,0.00492538]
[1767355979990,0.00492538,3048.7,3048.0,0.75770791]
[1767355981999,0.00492538,3048.7,3048.0,0.00492538]
[1767355997707,17.6591,3048.4,3048.0,0.00492538]
[1767356004312,14.87239122,3048.4,3048.0,0.00492538]
[1767356004618,6.32419324,3047.8,3047.4,0.16426]
[1767356004810,14.87239122,3048.4,3047.7,0.75278253]
[1767356005216,6.37550747,3047.6,3047.4,0.16426]
[1767356005410,0.00492538,3048.7,3047.4,0.16426]
[1767356005606,0.00492538,3048.7,3047.4,1.22458746]
[1767356005817,0.00492538,3048.7,3047.5,4.21789713]
[1767356006117,16.08918122,3048.2,3047.5,4.21789713]
[1767356006314,9.21709865,3048.3,3048.1,0.75278253]
[1767356006512,8.27957428,3047.8,3047.5,4.21789713]
[1767356006813,4.67581926,3048.1,3047.9,0.16423]
[1767356007121,0.00492538,3048.7,3047.9,0.16423]
[1767356007317,14.17778,3047.9,3047.7,0.75278253]
[1767356007517,6.77149197,3047.9,3047.8,0.16424]
[1767356007822,2.22157578,3047.8,3047.7,1.03926568]
[1767356008118,15.72624,3048.0,3047.9,0.45071315]
[1767356008317,15.37511432,3047.7,3047.6,0.13621253]
[1767356008515,14.47159432,3047.7,3047.6,0.88899506]
[1767356008812,18.5096,3047.7,3047.6,1.05324506]
[1767356009016,16.73234,3047.7,3047.6,1.05324506]
[1767356009318,22.08143494,3047.5,3047.3,0.00492538]
[1767356009521,19.82007,3047.7,3047.4,8.70278253]
[1767356009713,18.11762,3047.7,3047.6,0.75278253]
[1767356009912,10.71938933,3047.2,3047.1,0.16427]
[1767356010117,17.56763378,3047.5,3047.1,3.29]
[1767356010416,17.56763378,3047.5,3046.6,6.488]
[1767356010417,4.73588096,3047.0,3046.6,6.488]
[1767356010720,0.00492538,3048.7,3047.9,0.16423]
[1767356010921,3.50507786,3047.0,3046.9,3.44728]
[1767356011113,0.00492538,3048.7,3047.9,0.16423]
[1767356011412,0.00492538,3048.7,3048.0,4.669]
[1767356012720,0.00492538,3048.7,3048.0,4.83323]
[1767356013021,0.75278253,3049.1,3048.0,4.83323]
[1767356013208,8.2008,3049.0,3048.0,4.83323]
[1767356013814,0.00492538,3048.8,3048.2,0.00492538]
[1767356015722,7.1367,3048.7,3048.2,0.00492538]
[1767356019225,0.00492538,3048.8,3048.2,0.00492538]
[1767356019524,6.80012,3048.4,3048.2,0.00492538]
[1767356019717,6.46354,3048.4,3048.2,0.00492538]
[1767356019918,0.00492538,3048.8,3048.2,0.00492538]
[1767356020215,0.00492538,3048.8,3048.0,4.83323]
[1767356020216,5.27745462,3048.1,3048.0,4.83323]
[1767356020415,0.00492538,3048.8,3048.0,4.83323]
[1767356020817,5.2775,3048.6,3048.0,4.83323]
[1767356021224,5.2775,3048.6,3048.0,4.83815538]
[1767356024428,5.2775,3048.5,3048.0,4.83815538]
[1767356026431,5.2775,3048.5,3048.1,4.33864342]
[1767356029233,0.00492538,3048.8,3048.1,4.33864342]
[1767356029427,4.81425,3048.2,3048.1,4.33864342]
[1767356029628,4.37365,3048.2,3048.1,4.33864342]
[1767356029823,8.20572538,3048.8,3048.1,4.33864342]
[1767356029824,0.00492538,3048.8,3048.1,4.33864342]
[1767356030132,3.48083,3048.2,3048.1,4.33864342]
[1767356030534,8.20572538,3048.8,3048.1,4.33864342]
[1767356030734,3.15027,3048.4,3048.1,4.33864342]
[1767356031034,8.20572538,3048.8,3048.1,4.33864342]
[1767356031233,3.1502,3048.5,3048.1,4.33864342]
[1767356032335,11.3518,3048.5,3048.1,4.33864342]
[1767356034235,8.2016,3048.5,3048.1,4.33864342]
[1767356034439,3.1502,3048.4,3048.1,4.33864342]
[1767356035534,2.85806134,3048.4,3048.1,4.33864342]
[1767356035834,8.2016,3048.5,3048.1,4.33864342]
[1767356036029,8.2016,3048.5,3048.1,1.48054342]
[1767356036228,8.2016,3048.5,3048.0,4.83815538]
[1767356036938,8.2016,3048.5,3048.0,0.16915538]
[1767356037237,8.2016,3048.5,3048.1,4.744]
[1767356040237,0.72505297,3048.4,3048.0,0.16915538]
[1767356040537,0.72505297,3048.4,3048.2,4.756]
[1767356041428,0.72505297,3048.4,3048.2,4.08467756]
[1767356041734,8.2016,3048.5,3048.3,3.96351225]
[1767356044139,8.2016,3048.5,3048.3,2.01351225]
[1767356045240,8.2016,3048.5,3048.0,0.00492538]
[1767356045443,7.54,3048.2,3048.1,4.763]
[1767356046039,8.2016,3048.5,3048.1,4.763]
[1767356046634,8.2016,3048.5,3048.0,0.00492538]
[1767356046839,8.2016,3048.5,3048.1,4.765]
[1767356047539,8.2016,3048.2,3047.2,3.282]
[1767356047735,0.72505297,3048.4,3047.3,4.767]
[1767356047736,8.92745297,3048.4,3047.3,4.767]
[1767356047931,8.2024,3048.3,3047.3,4.767]
[1767356048331,8.2024,3048.2,3047.3,4.767]
[1767356048531,8.2024,3048.3,3047.4,0.00492538]
[1767356049033,8.2024,3048.2,3047.5,4.3079039]
[1767356049239,8.2016,3048.7,3047.6,0.89972856]
[1767356049441,8.2016,3048.7,3047.7,4.769]
[1767356049635,8.2016,3048.6,3047.7,9.09161849]
[1767356049831,8.2016,3048.7,3047.7,9.09161849]
[1767356050238,8.2016,3048.6,3047.7,9.25585849]
[1767356050439,8.2016,3048.7,3047.7,9.25585849]
[1767356050930,8.2016,3048.6,3047.7,9.25585849]
[1767356051133,8.2016,3048.7,3047.7,9.25585849]
[1767356051540,8.2016,3048.6,3047.7,9.25585849]
[1767356051742,8.2016,3048.7,3047.7,9.25585849]
[1767356052142,8.2016,3048.6,3047.7,9.25585849]
[1767356052343,0.00492538,3048.8,3047.7,9.25585849]
[1767356052344,8.2016,3048.7,3047.7,9.25585849]
[1767356052845,8.2016,3048.6,3047.7,9.25585849]
[1767356053145,8.2016,3048.7,3047.7,9.25585849]
[1767356053545,8.2016,3048.6,3047.7,9.25585849]
[1767356053745,8.2016,3048.7,3047.7,9.25585849]
[1767356054142,0.00492538,3048.8,3047.7,9.25585849]
[1767356054143,8.2016,3048.6,3047.7,9.25585849]
[1767356054443,8.2016,3048.5,3047.7,9.25585849]
[1767356054642,8.2016,3048.7,3047.7,9.25585849]
[1767356055235,8.2016,3048.6,3047.7,9.25585849]
[1767356055438,8.2016,3048.7,3047.7,9.25585849]
[1767356056146,8.2016,3048.6,3047.7,9.25585849]
[1767356056349,8.2016,3048.7,3047.7,9.25585849]
[1767356056545,5.92033,3048.7,3048.1,0.89969856]
[1767356056742,5.92353,3048.6,3048.2,4.792]
[1767356056946,0.00492538,3048.8,3048.2,4.792]
[1767356057245,5.92353,3048.7,3048.2,4.792]
[1767356057746,5.92353,3048.6,3048.2,4.792]
[1767356057947,5.92353,3048.7,3048.2,4.792]
[1767356058349,5.92353,3048.6,3048.2,4.792]
[1767356058550,5.92353,3048.7,3048.2,4.792]
[1767356058946,5.92353,3048.6,3048.2,4.792]
[1767356059151,5.92353,3048.7,3048.2,4.792]
[1767356059447,6.64858297,3048.7,3048.3,4.797]
[1767356059642,5.92353,3048.6,3047.7,1.1746769]
[1767356059844,5.92353,3048.5,3047.8,4.797]
[1767356060150,0.72505297,3048.7,3047.9,4.797]
[1767356060151,7.54,3048.0,3047.9,4.797]
[1767356060443,5.92353,3048.6,3047.9,4.797]
[1767356060643,5.92353,3048.5,3047.9,4.797]
[1767356060850,5.92353,3048.6,3047.9,4.797]
[1767356061247,5.92353,3048.5,3047.9,4.797]
[1767356061450,5.92353,3048.6,3047.9,4.797]
[1767356061750,0.72505297,3048.7,3047.9,4.797]
[1767356061751,5.92353,3048.5,3047.9,4.797]
[1767356062051,5.92353,3048.6,3047.9,4.797]
[1767356062451,5.92353,3048.5,3047.9,4.797]
[1767356062750,5.92353,3048.6,3047.9,4.797]
[1767356063145,5.92353,3048.5,3047.9,4.797]
[1767356063350,5.92353,3048.6,3047.9,4.797]
[1767356063546,5.92353,3048.7,3047.9,4.797]
[1767356063948,5.92353,3048.6,3047.9,4.797]
[1767356064143,5.92353,3048.7,3047.9,4.797]
[1767356065053,5.92353,3048.6,3047.9,4.797]
[1767356065246,5.92353,3048.7,3047.9,4.797]
[1767356065749,5.92353,3048.6,3047.9,4.797]
[1767356066048,5.92353,3048.7,3047.9,4.797]
[1767356066446,5.92353,3048.6,3047.9,4.797]
[1767356066641,5.92353,3048.7,3047.9,4.797]
[1767356067046,5.92353,3048.6,3047.9,4.797]
[1767356067250,5.92353,3048.7,3047.9,4.797]
[1767356067651,5.92353,3048.6,3047.9,4.797]
[1767356067948,5.92353,3048.7,3047.9,4.96123]
[1767356068443,0.00492538,3048.8,3047.9,4.96123]
[1767356068444,5.92353,3048.6,3047.9,4.96123]
[1767356068652,0.00492538,3048.8,3047.9,4.96123]
[1767356068653,5.92353,3048.7,3048.0,4.16697659]
[1767356069045,5.92353,3048.6,3048.0,4.16697659]
[1767356069246,5.92353,3048.7,3048.1,4.813]
[1767356069647,5.92353,3048.6,3048.1,4.813]
[1767356069944,5.92353,3048.7,3048.1,4.813]
[1767356070349,5.92353,3048.6,3048.1,4.813]
[1767356070549,5.92353,3048.7,3048.1,4.813]
[1767356071052,5.92353,3048.6,3048.1,4.813]
[1767356071254,0.00492538,3048.8,3048.1,4.813]
[1767356071255,5.92353,3048.5,3048.1,4.813]
[1767356071453,5.92353,3048.7,3048.1,4.813]
[1767356072050,5.92353,3048.6,3048.1,4.813]
[1767356072353,5.92353,3048.7,3048.1,4.813]
[1767356072857,5.92353,3048.6,3048.1,4.813]
[1767356073154,5.92353,3048.7,3048.1,4.813]
[1767356073551,5.92353,3048.6,3048.1,4.813]
[1767356073754,5.92353,3048.7,3048.1,4.813]
[1767356074248,5.92353,3048.6,3048.1,4.813]
[1767356074442,5.92353,3048.7,3048.1,4.813]
[1767356075049,13.11799,3048.6,3047.4,0.00492538]
[1767356075253,5.92353,3048.6,3047.5,8.111]
[1767356075452,5.92353,3048.5,3047.8,4.23018849]
[1767356075651,5.92353,3048.6,3047.9,4.83]
[1767356076049,5.92353,3048.5,3047.9,4.83]
[1767356076245,5.92353,3048.6,3047.9,4.83]
[1767356076649,5.92353,3048.5,3047.9,4.83]
[1767356076849,5.92353,3048.6,3047.9,4.83]
[1767356077250,5.92353,3048.5,3047.9,4.83]
[1767356077452,5.92353,3048.6,3047.9,4.83]
[1767356077653,5.92353,3048.6,3047.5,0.79816551]
[1767356077854,5.92353,3048.5,3047.6,4.836]
[1767356078053,5.92353,3048.6,3047.6,9.1484929]
[1767356078457,5.92353,3048.5,3047.6,4.3124929]
[1767356078759,5.92353,3048.6,3047.7,4.839]
[1767356079261,5.92353,3048.5,3047.7,4.839]
[1767356079461,5.92353,3048.6,3047.8,4.841]
[1767356079662,5.92353,3048.5,3047.8,4.841]
[1767356079953,5.92353,3048.6,3047.9,4.842]